[Event "Titled Tuesday Blitz February 14 Early 2023"]
[White "Tan, Zhongyi"]
[Black "Jimenez Garcia, Emmanuel"]
[WhiteFideId "8603642"]
[BlackFideId "6504779"]
[WhiteElo "2517"]
[BlackElo "2410"]
[Result "1-0"]
[Round "01"]
[TimeControl "180+2"]
[Date "2023.02.15"]
[WhiteClock "0:00:18"]
[BlackClock "0:00:03"]

1. c4 {[%clk 0:03:00]}  b6 {[%clk 0:03:00]} 2. Nc3 {[%clk 0:02:57]}  Bb7 {[%clk 0:03:01]} 3. e4 {[%clk 0:02:56]}  e5 {[%clk 0:03:01]} 4. d3 {[%clk 0:02:51]}  Nc6 {[%clk 0:03:02]} 5. g3 {[%clk 0:02:50]}  Bc5 {[%clk 0:03:01]} 6. Bg2 {[%clk 0:02:50]}  Nge7 {[%clk 0:03:02]} 7. Nge2 {[%clk 0:02:49]}  O-O {[%clk 0:03:02]} 8. O-O {[%clk 0:02:49]}  f5 {[%clk 0:03:03]} 9. Be3 {[%clk 0:02:46]}  d6 {[%clk 0:02:59]} 10. Nd5 {[%clk 0:02:43]}  a5 {[%clk 0:02:49]} 11. Qd2 {[%clk 0:02:24]}  Qd7 {[%clk 0:02:44]} 12. Bg5 {[%clk 0:02:16]}  Nxd5 {[%clk 0:02:27]} 13. exd5 {[%clk 0:02:12]}  Nd4 {[%clk 0:02:27]} 14. Nxd4 {[%clk 0:02:03]}  Bxd4 {[%clk 0:02:28]} 15. Be3 {[%clk 0:02:03]}  Bxe3 {[%clk 0:02:27]} 16. fxe3 {[%clk 0:02:03]}  Rf7 {[%clk 0:02:09]} 17. e4 {[%clk 0:01:59]}  Raf8 {[%clk 0:02:06]} 18. Bh3 {[%clk 0:01:58]}  g6 {[%clk 0:02:02]} 19. Rf2 {[%clk 0:01:50]}  Bc8 {[%clk 0:01:57]} 20. Raf1 {[%clk 0:01:50]}  Qd8 {[%clk 0:01:55]} 21. Qh6 {[%clk 0:01:49]}  Qf6 {[%clk 0:01:16]} 22. Kh1 {[%clk 0:01:31]}  Qg7 {[%clk 0:01:12]} 23. Qg5 {[%clk 0:01:10]}  h6 {[%clk 0:01:09]} 24. Qd2 {[%clk 0:01:08]}  Rf6 {[%clk 0:00:56]} 25. a3 {[%clk 0:01:00]}  Bd7 {[%clk 0:00:41]} 26. b4 {[%clk 0:00:56]}  axb4 {[%clk 0:00:42]} 27. axb4 {[%clk 0:00:57]}  Kh7 {[%clk 0:00:35]} 28. Kg1 {[%clk 0:00:45]}  Qe7 {[%clk 0:00:12]} 29. Rf3 {[%clk 0:00:38]}  R6f7 {[%clk 0:00:09]} 30. Qf2 {[%clk 0:00:37]}  f4 {[%clk 0:00:07]} 31. Bxd7 {[%clk 0:00:24]}  Qxd7 {[%clk 0:00:08]} 32. d4 {[%clk 0:00:24]}  g5 {[%clk 0:00:06]} 33. dxe5 {[%clk 0:00:21]}  dxe5 {[%clk 0:00:07]} 34. gxf4 {[%clk 0:00:17]}  Rxf4 {[%clk 0:00:05]} 35. Rxf4 {[%clk 0:00:17]}  Rxf4 {[%clk 0:00:06]} 36. Qg2 {[%clk 0:00:17]}  Rg4 {[%clk 0:00:06]} 37. Rf7+ {[%clk 0:00:16]}  Qxf7 {[%clk 0:00:06]} 38. Qxg4 {[%clk 0:00:17]}  Qf4 {[%clk 0:00:06]} 39. Qxf4 {[%clk 0:00:16]}  gxf4 {[%clk 0:00:04]} 40. c5 {[%clk 0:00:16]}  bxc5 {[%clk 0:00:05]} 41. bxc5 {[%clk 0:00:17]}  Kg7 {[%clk 0:00:04]} 42. d6 {[%clk 0:00:17]}  cxd6 {[%clk 0:00:03]} 43. c6 {[%clk 0:00:18]} 1-0


[Site "https://www.chess.com"]

[Event "Titled Tuesday Blitz February 14 Early 2023"]
[White "Goldin, Roman"]
[Black "Ozates, Tuna"]
[WhiteFideId "2803860"]
[BlackFideId "6354521"]
[WhiteElo "2322"]
[BlackElo "2251"]
[Result "0-1"]
[Round "01"]
[TimeControl "180+2"]
[Date "2023.02.15"]
[WhiteClock "0:00:03"]
[BlackClock "0:01:17"]

1. Nf3 {[%clk 0:02:58]}  c5 {[%clk 0:02:59]} 2. e4 {[%clk 0:02:54]}  Nc6 {[%clk 0:02:59]} 3. c3 {[%clk 0:02:49]}  d5 {[%clk 0:02:56]} 4. exd5 {[%clk 0:02:49]}  Qxd5 {[%clk 0:02:57]} 5. d4 {[%clk 0:02:49]}  Bf5 {[%clk 0:02:57]} 6. dxc5 {[%clk 0:02:26]}  Qxd1+ {[%clk 0:02:53]} 7. Kxd1 {[%clk 0:02:26]}  O-O-O+ {[%clk 0:02:53]} 8. Nbd2 {[%clk 0:02:26]}  e5 {[%clk 0:02:53]} 9. b4 {[%clk 0:02:26]}  e4 {[%clk 0:02:52]} 10. Ng5 {[%clk 0:02:03]}  Ne5 {[%clk 0:02:48]} 11. f4 {[%clk 0:01:53]}  exf3 {[%clk 0:02:38]} 12. Nxf3 {[%clk 0:01:50]}  Ng4 {[%clk 0:02:35]} 13. Nd4 {[%clk 0:01:34]}  Bg6 {[%clk 0:02:14]} 14. Ke1 {[%clk 0:01:28]}  N8f6 {[%clk 0:01:57]} 15. Be2 {[%clk 0:01:27]}  Ne3 {[%clk 0:01:57]} 16. Kf2 {[%clk 0:01:24]}  Ned5 {[%clk 0:01:48]} 17. Bb2 {[%clk 0:01:18]}  Be7 {[%clk 0:01:42]} 18. Bf3 {[%clk 0:01:17]}  Nf4 {[%clk 0:01:42]} 19. Nc4 {[%clk 0:00:30]}  N6d5 {[%clk 0:01:32]} 20. Rad1 {[%clk 0:00:22]}  Nd3+ {[%clk 0:01:30]} 21. Rxd3 {[%clk 0:00:16]}  Bxd3 {[%clk 0:01:29]} 22. Ne5 {[%clk 0:00:14]}  Bg6 {[%clk 0:01:29]} 23. Rd1 {[%clk 0:00:08]}  Bf6 {[%clk 0:01:26]} 24. Nb5 {[%clk 0:00:03]}  Nf4 {[%clk 0:01:17]} 0-1


[Site "https://www.chess.com"]

[Event "Titled Tuesday Blitz February 14 Early 2023"]
[White "Liyanage, Ranindu Dilshan"]
[Black "Todorovic, Bojan"]
[WhiteFideId "9915834"]
[BlackFideId "917087"]
[WhiteElo "2342"]
[BlackElo "2195"]
[Result "1-0"]
[Round "01"]
[TimeControl "180+2"]
[Date "2023.02.15"]
[WhiteClock "0:01:38"]
[BlackClock "0:02:13"]

1. d4 {[%clk 0:02:58]}  Nf6 {[%clk 0:02:58]} 2. Bf4 {[%clk 0:02:57]}  c5 {[%clk 0:02:56]} 3. d5 {[%clk 0:02:56]}  d6 {[%clk 0:02:50]} 4. c4 {[%clk 0:02:54]}  g6 {[%clk 0:02:49]} 5. Nc3 {[%clk 0:02:54]}  Bg7 {[%clk 0:02:48]} 6. Nf3 {[%clk 0:02:53]}  O-O {[%clk 0:02:47]} 7. h3 {[%clk 0:02:53]}  b5 {[%clk 0:02:46]} 8. Nxb5 {[%clk 0:02:41]}  Ne4 {[%clk 0:02:45]} 9. Qc2 {[%clk 0:02:23]}  Bf5 {[%clk 0:02:40]} 10. g4 {[%clk 0:02:14]}  Qa5+ {[%clk 0:02:37]} 11. Nd2 {[%clk 0:02:13]}  Nxd2 {[%clk 0:02:36]} 12. Qxd2 {[%clk 0:02:05]}  Qxd2+ {[%clk 0:02:29]} 13. Kxd2 {[%clk 0:01:47]}  Be4 {[%clk 0:02:29]} 14. f3 {[%clk 0:01:46]}  Bxb2 {[%clk 0:02:27]} 15. Rd1 {[%clk 0:01:44]}  e5 {[%clk 0:02:13]} 16. Bh6 {[%clk 0:01:38]} 1-0


[Site "https://www.chess.com"]

[Event "Titled Tuesday Blitz February 14 Early 2023"]
[White "Kostiukov, Alexandr"]
[Black "Nigmatov, Ortik"]
[WhiteFideId "14108100"]
[BlackFideId "14202131"]
[WhiteElo "2271"]
[BlackElo "2438"]
[Result "0-1"]
[Round "01"]
[TimeControl "180+2"]
[Date "2023.02.15"]
[WhiteClock "0:00:33"]
[BlackClock "0:01:10"]

1. g3 {[%clk 0:02:53]}  d5 {[%clk 0:02:57]} 2. Bg2 {[%clk 0:02:52]}  e5 {[%clk 0:02:55]} 3. c4 {[%clk 0:02:51]}  d4 {[%clk 0:02:52]} 4. d3 {[%clk 0:02:46]}  Nf6 {[%clk 0:02:51]} 5. Nf3 {[%clk 0:02:38]}  Nc6 {[%clk 0:02:50]} 6. O-O {[%clk 0:02:23]}  a5 {[%clk 0:02:47]} 7. Na3 {[%clk 0:02:19]}  Bc5 {[%clk 0:02:40]} 8. Ng5 {[%clk 0:02:02]}  O-O {[%clk 0:02:34]} 9. Ne4 {[%clk 0:01:59]}  Nxe4 {[%clk 0:02:34]} 10. Bxe4 {[%clk 0:02:00]}  Bh3 {[%clk 0:02:33]} 11. Bg2 {[%clk 0:01:56]}  Bxg2 {[%clk 0:02:32]} 12. Kxg2 {[%clk 0:01:57]}  f5 {[%clk 0:02:32]} 13. e4 {[%clk 0:01:45]}  fxe4 {[%clk 0:02:10]} 14. dxe4 {[%clk 0:01:43]}  Bxa3 {[%clk 0:01:43]} 15. bxa3 {[%clk 0:01:31]}  a4 {[%clk 0:01:44]} 16. Rb1 {[%clk 0:01:22]}  b6 {[%clk 0:01:43]} 17. Bd2 {[%clk 0:01:12]}  Rf7 {[%clk 0:01:40]} 18. f4 {[%clk 0:01:10]}  exf4 {[%clk 0:01:36]} 19. gxf4 {[%clk 0:01:10]}  Qe7 {[%clk 0:01:35]} 20. e5 {[%clk 0:01:09]}  Raf8 {[%clk 0:01:24]} 21. Rf3 {[%clk 0:01:08]}  Nxe5 {[%clk 0:01:18]} 22. Rg3 {[%clk 0:00:42]}  Nxc4 {[%clk 0:01:13]} 23. Bc1 {[%clk 0:00:34]}  Qe4+ {[%clk 0:01:11]} 24. Kh3 {[%clk 0:00:33]}  Qxb1 {[%clk 0:01:10]} 0-1


[Site "https://www.chess.com"]

[Event "Titled Tuesday Blitz February 14 Early 2023"]
[White "Kotepalli, Sai Nirupama"]
[Black "Taspinar, Yanki"]
[WhiteFideId "5039444"]
[BlackFideId "34561188"]
[WhiteElo "1910"]
[BlackElo "2262"]
[Result "0-1"]
[Round "01"]
[TimeControl "180+2"]
[Date "2023.02.15"]
[WhiteClock "0:00:08"]
[BlackClock "0:00:07"]

1. e4 {[%clk 0:02:56]}  g6 {[%clk 0:02:57]} 2. d3 {[%clk 0:02:55]}  c5 {[%clk 0:02:57]} 3. Nf3 {[%clk 0:02:55]}  Bg7 {[%clk 0:02:57]} 4. g3 {[%clk 0:02:54]}  Nc6 {[%clk 0:02:56]} 5. Bg2 {[%clk 0:02:54]}  d6 {[%clk 0:02:54]} 6. O-O {[%clk 0:02:53]}  e6 {[%clk 0:02:55]} 7. c3 {[%clk 0:02:52]}  Nge7 {[%clk 0:02:55]} 8. Be3 {[%clk 0:02:51]}  O-O {[%clk 0:02:54]} 9. Nbd2 {[%clk 0:02:48]}  Rb8 {[%clk 0:02:47]} 10. Nh4 {[%clk 0:02:44]}  b5 {[%clk 0:02:42]} 11. a3 {[%clk 0:02:43]}  a5 {[%clk 0:02:34]} 12. f4 {[%clk 0:02:41]}  b4 {[%clk 0:02:34]} 13. axb4 {[%clk 0:02:41]}  axb4 {[%clk 0:02:34]} 14. Qc2 {[%clk 0:02:41]}  Qc7 {[%clk 0:02:04]} 15. Nhf3 {[%clk 0:02:06]}  Bd7 {[%clk 0:01:49]} 16. h4 {[%clk 0:02:00]}  Rfc8 {[%clk 0:01:46]} 17. h5 {[%clk 0:01:56]}  Qb7 {[%clk 0:01:36]} 18. Nc4 {[%clk 0:01:47]}  Qc7 {[%clk 0:01:30]} 19. hxg6 {[%clk 0:01:36]}  hxg6 {[%clk 0:01:30]} 20. Ncd2 {[%clk 0:01:33]}  Rb7 {[%clk 0:01:15]} 21. Ng5 {[%clk 0:01:24]}  Rcb8 {[%clk 0:01:10]} 22. c4 {[%clk 0:01:23]}  Nd4 {[%clk 0:01:07]} 23. Qd1 {[%clk 0:01:22]}  b3 {[%clk 0:00:59]} 24. Rb1 {[%clk 0:01:14]}  Nec6 {[%clk 0:00:49]} 25. Qg4 {[%clk 0:01:11]}  Nb4 {[%clk 0:00:26]} 26. Qh4 {[%clk 0:01:09]}  Nxd3 {[%clk 0:00:20]} 27. Qh7+ {[%clk 0:01:06]}  Kf8 {[%clk 0:00:20]} 28. e5 {[%clk 0:00:50]}  Be8 {[%clk 0:00:12]} 29. exd6 {[%clk 0:00:43]}  Qxd6 {[%clk 0:00:12]} 30. Bxb7 {[%clk 0:00:42]}  Rxb7 {[%clk 0:00:13]} 31. Nde4 {[%clk 0:00:42]}  Qc6 {[%clk 0:00:09]} 32. Qh1 {[%clk 0:00:40]}  Nc2 {[%clk 0:00:06]} 33. Bd2 {[%clk 0:00:24]}  Kg8 {[%clk 0:00:06]} 34. Qh7+ {[%clk 0:00:22]}  Kf8 {[%clk 0:00:06]} 35. Qh1 {[%clk 0:00:19]}  f5 {[%clk 0:00:06]} 36. Nc3 {[%clk 0:00:17]}  Bd4+ {[%clk 0:00:05]} 37. Kh2 {[%clk 0:00:17]}  Qxh1+ {[%clk 0:00:04]} 38. Kxh1 {[%clk 0:00:17]}  Ke7 {[%clk 0:00:04]} 39. Rf3 {[%clk 0:00:16]}  Bc6 {[%clk 0:00:04]} 40. Kh2 {[%clk 0:00:16]}  Bxf3 {[%clk 0:00:05]} 41. Nxf3 {[%clk 0:00:17]}  Be3 {[%clk 0:00:04]} 42. Bxe3 {[%clk 0:00:15]}  Nxe3 {[%clk 0:00:05]} 43. Nb5 {[%clk 0:00:15]}  Kf6 {[%clk 0:00:05]} 44. Na3 {[%clk 0:00:14]}  Rh7+ {[%clk 0:00:05]} 45. Kg1 {[%clk 0:00:14]}  Rh3 {[%clk 0:00:05]} 46. Ng5 {[%clk 0:00:12]}  Rxg3+ {[%clk 0:00:05]} 47. Kh2 {[%clk 0:00:12]}  Rg2+ {[%clk 0:00:05]} 48. Kh3 {[%clk 0:00:09]}  Nf2+ {[%clk 0:00:06]} 49. Kh4 {[%clk 0:00:08]}  Rg4# {[%clk 0:00:07]} 0-1


[Site "https://www.chess.com"]

[Event "Titled Tuesday Blitz February 14 Early 2023"]
[White "Jaracz, Pawel"]
[Black "Manon-og, Ramon Jr."]
[WhiteFideId "1102222"]
[BlackFideId "5200776"]
[WhiteElo "2467"]
[BlackElo "1999"]
[Result "1-0"]
[Round "01"]
[TimeControl "180+2"]
[Date "2023.02.15"]
[WhiteClock "0:01:40"]
[BlackClock "0:01:33"]

1. d4 {[%clk 0:03:00]}  Nf6 {[%clk 0:02:57]} 2. c4 {[%clk 0:02:57]}  g6 {[%clk 0:02:57]} 3. Nc3 {[%clk 0:02:57]}  d5 {[%clk 0:02:57]} 4. cxd5 {[%clk 0:02:45]}  Nxd5 {[%clk 0:02:58]} 5. Bg5 {[%clk 0:02:45]}  Nxc3 {[%clk 0:02:41]} 6. bxc3 {[%clk 0:02:45]}  c5 {[%clk 0:02:41]} 7. Qd2 {[%clk 0:02:41]}  h6 {[%clk 0:02:41]} 8. Bf4 {[%clk 0:02:37]}  cxd4 {[%clk 0:02:41]} 9. cxd4 {[%clk 0:02:28]}  Bg7 {[%clk 0:02:41]} 10. e3 {[%clk 0:02:27]}  O-O {[%clk 0:02:40]} 11. Nf3 {[%clk 0:02:26]}  Nc6 {[%clk 0:02:41]} 12. Bb5 {[%clk 0:02:23]}  Bd7 {[%clk 0:02:39]} 13. Rb1 {[%clk 0:02:13]}  a6 {[%clk 0:02:36]} 14. Be2 {[%clk 0:02:12]}  b5 {[%clk 0:02:31]} 15. O-O {[%clk 0:02:12]}  Rc8 {[%clk 0:02:31]} 16. a4 {[%clk 0:02:09]}  bxa4 {[%clk 0:02:18]} 17. Bxa6 {[%clk 0:02:08]}  Ra8 {[%clk 0:02:18]} 18. Bc4 {[%clk 0:02:03]}  Bg4 {[%clk 0:02:05]} 19. Qc2 {[%clk 0:01:56]}  Bxf3 {[%clk 0:01:51]} 20. gxf3 {[%clk 0:01:56]}  Qd7 {[%clk 0:01:51]} 21. Qxg6 {[%clk 0:01:48]}  Na5 {[%clk 0:01:33]} 22. Bxh6 {[%clk 0:01:40]} 1-0


[Site "https://www.chess.com"]

[Event "Titled Tuesday Blitz February 14 Early 2023"]
[White "Nikologorsky, Matfei"]
[Black "Papasimakopoulos, Alexandros"]
[WhiteFideId "24102474"]
[BlackFideId "4244125"]
[WhiteElo "2182"]
[BlackElo "2401"]
[Result "0-1"]
[Round "01"]
[TimeControl "180+2"]
[Date "2023.02.15"]
[WhiteClock "0:01:46"]
[BlackClock "0:02:33"]

1. e4 {[%clk 0:03:00]}  e6 {[%clk 0:02:52]} 2. d4 {[%clk 0:03:00]}  d5 {[%clk 0:02:53]} 3. Nd2 {[%clk 0:03:00]}  Nf6 {[%clk 0:02:53]} 4. e5 {[%clk 0:02:58]}  Nfd7 {[%clk 0:02:53]} 5. Bd3 {[%clk 0:02:58]}  c5 {[%clk 0:02:54]} 6. c3 {[%clk 0:02:58]}  Nc6 {[%clk 0:02:54]} 7. Ne2 {[%clk 0:02:59]}  cxd4 {[%clk 0:02:55]} 8. cxd4 {[%clk 0:02:59]}  f6 {[%clk 0:02:55]} 9. exf6 {[%clk 0:02:58]}  Nxf6 {[%clk 0:02:56]} 10. Nf3 {[%clk 0:02:58]}  Bd6 {[%clk 0:02:57]} 11. O-O {[%clk 0:02:56]}  Qc7 {[%clk 0:02:57]} 12. Bd2 {[%clk 0:02:54]}  O-O {[%clk 0:02:57]} 13. Rc1 {[%clk 0:02:50]}  Bd7 {[%clk 0:02:57]} 14. Bc3 {[%clk 0:02:49]}  Be8 {[%clk 0:02:53]} 15. Re1 {[%clk 0:02:47]}  Bh5 {[%clk 0:02:53]} 16. Ng3 {[%clk 0:02:35]}  Bg4 {[%clk 0:02:44]} 17. Qd2 {[%clk 0:02:14]}  Bxf3 {[%clk 0:02:42]} 18. gxf3 {[%clk 0:02:14]}  Bf4 {[%clk 0:02:42]} 19. Qe2 {[%clk 0:02:09]}  Bxc1 {[%clk 0:02:40]} 20. Qxe6+ {[%clk 0:02:08]}  Qf7 {[%clk 0:02:39]} 21. Qxf7+ {[%clk 0:02:08]}  Kxf7 {[%clk 0:02:38]} 22. Rxc1 {[%clk 0:02:09]}  g6 {[%clk 0:02:38]} 23. Nf1 {[%clk 0:01:59]}  Rac8 {[%clk 0:02:38]} 24. Ne3 {[%clk 0:01:59]}  Nxd4 {[%clk 0:02:36]} 25. Kg2 {[%clk 0:01:46]}  Ne6 {[%clk 0:02:33]} 0-1


[Site "https://www.chess.com"]

[Event "Titled Tuesday Blitz February 14 Early 2023"]
[White "Fromm, Marius"]
[Black "Jarocka, Liwia"]
[WhiteFideId "12993190"]
[BlackFideId "21807558"]
[WhiteElo "2457"]
[BlackElo "2225"]
[Result "1/2-1/2"]
[Round "01"]
[TimeControl "180+2"]
[Date "2023.02.15"]
[WhiteClock "0:00:07"]
[BlackClock "0:00:08"]

1. e4 {[%clk 0:03:00]}  c5 {[%clk 0:02:59]} 2. Nf3 {[%clk 0:02:58]}  Nc6 {[%clk 0:03:00]} 3. Bb5 {[%clk 0:02:58]}  g6 {[%clk 0:03:00]} 4. Bxc6 {[%clk 0:02:57]}  dxc6 {[%clk 0:02:58]} 5. d3 {[%clk 0:02:57]}  Nf6 {[%clk 0:02:56]} 6. Be3 {[%clk 0:02:51]}  Nd7 {[%clk 0:02:53]} 7. Nc3 {[%clk 0:02:50]}  Bg7 {[%clk 0:02:53]} 8. O-O {[%clk 0:02:50]}  O-O {[%clk 0:02:51]} 9. Qd2 {[%clk 0:02:50]}  e5 {[%clk 0:02:51]} 10. Bh6 {[%clk 0:02:49]}  b6 {[%clk 0:02:48]} 11. h3 {[%clk 0:02:38]}  Re8 {[%clk 0:02:47]} 12. Bxg7 {[%clk 0:02:36]}  Kxg7 {[%clk 0:02:46]} 13. Nh2 {[%clk 0:02:37]}  Nf8 {[%clk 0:02:37]} 14. f4 {[%clk 0:02:34]}  f6 {[%clk 0:02:25]} 15. fxe5 {[%clk 0:02:17]}  Rxe5 {[%clk 0:02:23]} 16. Qf2 {[%clk 0:02:09]}  Re8 {[%clk 0:02:16]} 17. Kh1 {[%clk 0:02:04]}  Ne6 {[%clk 0:02:15]} 18. Ng4 {[%clk 0:02:03]}  Rf8 {[%clk 0:02:14]} 19. Ne2 {[%clk 0:02:00]}  Nd4 {[%clk 0:02:06]} 20. Ne3 {[%clk 0:01:51]}  Be6 {[%clk 0:02:03]} 21. Nf4 {[%clk 0:01:49]}  Bg8 {[%clk 0:01:56]} 22. Qg3 {[%clk 0:01:45]}  Kh8 {[%clk 0:01:45]} 23. Rf2 {[%clk 0:01:35]}  Qd7 {[%clk 0:01:26]} 24. b3 {[%clk 0:01:32]}  Rae8 {[%clk 0:01:25]} 25. Raf1 {[%clk 0:01:31]}  Qg7 {[%clk 0:01:21]} 26. a4 {[%clk 0:01:26]}  a5 {[%clk 0:01:11]} 27. Ng4 {[%clk 0:01:04]}  f5 {[%clk 0:01:02]} 28. exf5 {[%clk 0:00:53]}  gxf5 {[%clk 0:00:36]} 29. Qh4 {[%clk 0:00:31]}  fxg4 {[%clk 0:00:34]} 30. Ng6+ {[%clk 0:00:32]}  Qxg6 {[%clk 0:00:33]} 31. Rxf8 {[%clk 0:00:33]}  Rxf8 {[%clk 0:00:32]} 32. Rxf8 {[%clk 0:00:33]}  gxh3 {[%clk 0:00:33]} 33. Qxh3 {[%clk 0:00:30]}  Kg7 {[%clk 0:00:30]} 34. Rb8 {[%clk 0:00:28]}  Bf7 {[%clk 0:00:22]} 35. Rxb6 {[%clk 0:00:26]}  Qh6 {[%clk 0:00:22]} 36. Qxh6+ {[%clk 0:00:21]}  Kxh6 {[%clk 0:00:23]} 37. Ra6 {[%clk 0:00:18]}  Bd5 {[%clk 0:00:21]} 38. Rxa5 {[%clk 0:00:18]}  Nxc2 {[%clk 0:00:21]} 39. Rxc5 {[%clk 0:00:18]}  Nb4 {[%clk 0:00:19]} 40. d4 {[%clk 0:00:16]}  Bxb3 {[%clk 0:00:18]} 41. a5 {[%clk 0:00:16]}  Bd5 {[%clk 0:00:18]} 42. Rc3 {[%clk 0:00:12]}  Kg5 {[%clk 0:00:18]} 43. Ra3 {[%clk 0:00:11]}  Na6 {[%clk 0:00:18]} 44. Kh2 {[%clk 0:00:10]}  Kf4 {[%clk 0:00:18]} 45. Rh3 {[%clk 0:00:10]}  Be4 {[%clk 0:00:17]} 46. Rg3 {[%clk 0:00:08]}  Bf5 {[%clk 0:00:13]} 47. Rb3 {[%clk 0:00:07]}  Ke4 {[%clk 0:00:10]} 48. Rb6 {[%clk 0:00:08]}  Bc8 {[%clk 0:00:10]} 49. Rxc6 {[%clk 0:00:08]}  Bb7 {[%clk 0:00:10]} 50. Rb6 {[%clk 0:00:07]}  Bc8 {[%clk 0:00:11]} 51. Rh6 {[%clk 0:00:06]}  Kxd4 {[%clk 0:00:09]} 52. Rxh7 {[%clk 0:00:06]}  Kc4 {[%clk 0:00:09]} 53. Rh5 {[%clk 0:00:07]}  Kb4 {[%clk 0:00:08]} 54. Kg3 {[%clk 0:00:07]}  Nc5 {[%clk 0:00:09]} 55. Kf3 {[%clk 0:00:05]}  Bb7+ {[%clk 0:00:08]} 56. Kf2 {[%clk 0:00:04]}  Ne4+ {[%clk 0:00:08]} 57. Ke3 {[%clk 0:00:04]}  Nf6 {[%clk 0:00:07]} 58. Rf5 {[%clk 0:00:04]}  Nd5+ {[%clk 0:00:07]} 59. Kd4 {[%clk 0:00:04]}  Nc7 {[%clk 0:00:06]} 60. g4 {[%clk 0:00:04]}  Nb5+ {[%clk 0:00:07]} 61. Ke3 {[%clk 0:00:03]}  Bc8 {[%clk 0:00:07]} 62. g5 {[%clk 0:00:04]}  Bxf5 {[%clk 0:00:07]} 63. a6 {[%clk 0:00:04]}  Bg6 {[%clk 0:00:06]} 64. Kf4 {[%clk 0:00:05]}  Na7 {[%clk 0:00:07]} 65. Ke5 {[%clk 0:00:06]}  Ka5 {[%clk 0:00:06]} 66. Kf6 {[%clk 0:00:07]}  Bd3 {[%clk 0:00:06]} 67. g6 {[%clk 0:00:07]}  Bxg6 {[%clk 0:00:07]} 68. Kxg6 {[%clk 0:00:07]}  Kxa6 {[%clk 0:00:08]} 1/2-1/2


[Site "https://www.chess.com"]

[Event "Titled Tuesday Blitz February 14 Early 2023"]
[White "Skliarov, Viktor"]
[Black "Polanco Nunez, Yoel Estarling"]
[WhiteFideId "14106736"]
[BlackFideId "6401783"]
[WhiteElo "2383"]
[BlackElo "2162"]
[Result "1-0"]
[Round "01"]
[TimeControl "180+2"]
[Date "2023.02.15"]
[WhiteClock "0:00:15"]
[BlackClock "0:00:33"]

1. e4 {[%clk 0:03:00]}  c5 {[%clk 0:02:59]} 2. Nf3 {[%clk 0:02:55]}  d6 {[%clk 0:02:59]} 3. d4 {[%clk 0:02:55]}  cxd4 {[%clk 0:03:00]} 4. Qxd4 {[%clk 0:02:55]}  Nf6 {[%clk 0:03:01]} 5. Nc3 {[%clk 0:02:54]}  Nc6 {[%clk 0:03:01]} 6. Bb5 {[%clk 0:02:51]}  Bd7 {[%clk 0:03:01]} 7. Bxc6 {[%clk 0:02:51]}  Bxc6 {[%clk 0:03:02]} 8. Bg5 {[%clk 0:02:52]}  e6 {[%clk 0:03:00]} 9. O-O-O {[%clk 0:02:51]}  Be7 {[%clk 0:03:00]} 10. Rhe1 {[%clk 0:02:52]}  Qa5 {[%clk 0:02:58]} 11. Kb1 {[%clk 0:02:52]}  O-O {[%clk 0:02:54]} 12. Qd2 {[%clk 0:02:52]}  b6 {[%clk 0:02:53]} 13. Nd4 {[%clk 0:02:46]}  Bb7 {[%clk 0:02:43]} 14. f3 {[%clk 0:02:43]}  Rac8 {[%clk 0:02:36]} 15. g4 {[%clk 0:02:40]}  Rc4 {[%clk 0:02:30]} 16. h4 {[%clk 0:02:15]}  Rfc8 {[%clk 0:02:28]} 17. Nb3 {[%clk 0:02:13]}  Qa6 {[%clk 0:02:17]} 18. Qd3 {[%clk 0:01:38]}  b5 {[%clk 0:02:13]} 19. Rd2 {[%clk 0:01:38]}  b4 {[%clk 0:02:02]} 20. Ne2 {[%clk 0:01:37]}  Qb6 {[%clk 0:02:01]} 21. Be3 {[%clk 0:01:31]}  Qc7 {[%clk 0:02:00]} 22. g5 {[%clk 0:01:21]}  Nd7 {[%clk 0:02:00]} 23. Ng3 {[%clk 0:01:21]}  a5 {[%clk 0:01:54]} 24. Nd4 {[%clk 0:00:48]}  a4 {[%clk 0:01:46]} 25. Nb5 {[%clk 0:00:48]}  Qc6 {[%clk 0:01:40]} 26. Nxd6 {[%clk 0:00:38]}  Ne5 {[%clk 0:01:39]} 27. Nxc8 {[%clk 0:00:32]}  Qxc8 {[%clk 0:01:35]} 28. Qe2 {[%clk 0:00:31]}  a3 {[%clk 0:01:33]} 29. Red1 {[%clk 0:00:23]}  axb2 {[%clk 0:01:29]} 30. f4 {[%clk 0:00:24]}  Ng6 {[%clk 0:01:26]} 31. h5 {[%clk 0:00:24]}  Nf8 {[%clk 0:01:25]} 32. h6 {[%clk 0:00:23]}  g6 {[%clk 0:01:09]} 33. Bd4 {[%clk 0:00:21]}  e5 {[%clk 0:01:06]} 34. Bxe5 {[%clk 0:00:14]}  Ne6 {[%clk 0:01:05]} 35. f5 {[%clk 0:00:15]}  Nxg5 {[%clk 0:00:38]} 36. Qxc4 {[%clk 0:00:14]}  Qxc4 {[%clk 0:00:33]} 37. Rd8+ {[%clk 0:00:14]}  Bf8 {[%clk 0:00:33]} 38. Bd6 {[%clk 0:00:15]} 1-0


[Site "https://www.chess.com"]